[Event "*** Titled Tuesday Blitz"]
[Site "Chess.com"]
[Date "2020.05.05"]
[Round "3"]
[White "Artem_Sadovsky"]
[Black "Saloni1299"]
[Result "1-0"]
[WhiteElo "2544"]
[BlackElo "2344"]
[TimeControl "180+1"]
[EndTime "10:29:28 PDT"]
[Termination "Artem_Sadovsky won by resignation"]

1. Nf3 {[%clk 0:02:57.9]} 1... d5 {[%clk 0:02:59.5]} 2. c4 {[%clk 0:02:57.7]}
2... Nf6 {[%clk 0:02:57.5]} 3. g3 {[%clk 0:02:54.2]} 3... c6 {[%clk 0:02:56.6]}
4. b3 {[%clk 0:02:49]} 4... g6 {[%clk 0:02:56.3]} 5. Bb2 {[%clk 0:02:49.3]} 5...
Bg7 {[%clk 0:02:56.9]} 6. Bg2 {[%clk 0:02:49.9]} 6... O-O {[%clk 0:02:56.9]} 7.
O-O {[%clk 0:02:50.6]} 7... Re8 {[%clk 0:02:54]} 8. d3 {[%clk 0:02:49]} 8...
Nbd7 {[%clk 0:02:52.3]} 9. Nbd2 {[%clk 0:02:49.5]} 9... e5 {[%clk 0:02:52.5]}
10. Qc2 {[%clk 0:02:50.1]} 10... a5 {[%clk 0:02:48.1]} 11. cxd5 {[%clk
0:02:47.9]} 11... cxd5 {[%clk 0:02:47.8]} 12. e4 {[%clk 0:02:48.8]} 12... d4
{[%clk 0:02:37.4]} 13. Nc4 {[%clk 0:02:48.4]} 13... b5 {[%clk 0:02:32.8]} 14.
Nd6 {[%clk 0:02:47.2]} 14... Re6 {[%clk 0:02:32.8]} 15. Nxb5 {[%clk 0:02:43.1]}
15... Rb6 {[%clk 0:02:06.5]} 16. Nc7 {[%clk 0:02:24.4]} 16... Ra7 {[%clk
0:02:03.7]} 17. Rac1 {[%clk 0:02:24.9]} 17... Bf8 {[%clk 0:01:54]} 18. Ne6
{[%clk 0:02:16.2]} 18... Rxe6 {[%clk 0:01:47.4]} 19. Qxc8 {[%clk 0:02:17.1]}
19... Qb6 {[%clk 0:01:38.9]} 20. Ng5 {[%clk 0:02:06.1]} 20... Re8 {[%clk
0:01:38.6]} 21. Qc4 {[%clk 0:02:06.5]} 21... Nc5 {[%clk 0:01:27.1]} 22. Ba3
{[%clk 0:02:02.6]} 22... Rc8 {[%clk 0:01:24.5]} 23. Bh3 {[%clk 0:01:58.8]} 23...
Rc6 {[%clk 0:01:18.4]} 24. Nxf7 {[%clk 0:01:59.2]} 24... Rxf7 {[%clk 0:01:16.7]}
25. f4 {[%clk 0:01:52]} 25... Qc7 {[%clk 0:00:41.9]} 26. Rc2 {[%clk 0:01:25.7]}
26... Kg7 {[%clk 0:00:38.7]} 27. Rcf2 {[%clk 0:01:23.1]} 27... Bd6 {[%clk
0:00:33.9]} 28. fxe5 {[%clk 0:01:22.5]} 28... Bxe5 {[%clk 0:00:34.2]} 29. Rc2
{[%clk 0:01:11.2]} 29... Rf8 {[%clk 0:00:16.4]} 30. Bxc5 {[%clk 0:01:08.1]}
30... Rc8 {[%clk 0:00:16.3]} 31. Bxc8 {[%clk 0:01:06.9]} 31... Qxc8 {[%clk
0:00:14.6]} 32. Bf8+ {[%clk 0:01:07.4]} 32... Kxf8 {[%clk 0:00:13.4]} 33. Qxc6
{[%clk 0:01:08.3]} 33... Qxc6 {[%clk 0:00:13.2]} 34. Rxc6 {[%clk 0:01:08.8]}
34... Kg7 {[%clk 0:00:13.8]} 35. Rfxf6 {[%clk 0:01:08.7]} 35... Bxf6 {[%clk
0:00:13.5]} 36. Rxf6 {[%clk 0:01:07.7]} 36... Kxf6 {[%clk 0:00:13.6]} 37. Kf2
{[%clk 0:01:08.3]} 37... Ke5 {[%clk 0:00:14.3]} 38. Kf3 {[%clk 0:01:07.3]} 38...
h5 {[%clk 0:00:14.7]} 39. a3 {[%clk 0:01:07.8]} 39... g5 {[%clk 0:00:14.7]} 40.
h3 {[%clk 0:01:07.5]} 40... Ke6 {[%clk 0:00:13.6]} 41. Ke2 {[%clk 0:01:06.6]}
41... Kd6 {[%clk 0:00:13.5]} 42. Kd2 {[%clk 0:01:05.8]} 42... Kc5 {[%clk
0:00:13.8]} 43. Kc2 {[%clk 0:01:06.2]} 43... Kc6 {[%clk 0:00:13.9]} 44. Kb2
{[%clk 0:01:02.3]} 44... Kc5 {[%clk 0:00:12.1]} 45. a4 {[%clk 0:01:00.5]} 45...
Kb4 {[%clk 0:00:10.3]} 46. Kc2 {[%clk 0:01:01]} 46... Kc5 {[%clk 0:00:10.4]} 47.
Kc1 {[%clk 0:01:01.6]} 47... Kb4 {[%clk 0:00:10.4]} 48. Kb2 {[%clk 0:01:02.1]}
48... Kc5 {[%clk 0:00:10.7]} 49. Ka3 {[%clk 0:01:02.8]} 49... Kd6 {[%clk
0:00:08.4]} 50. b4 {[%clk 0:01:03.4]} 50... g4 {[%clk 0:00:08]} 51. hxg4 {[%clk
0:01:02.1]} 51... axb4+ {[%clk 0:00:08.5]} 52. Kxb4 {[%clk 0:01:01.4]} 52...
hxg4 {[%clk 0:00:09.4]} 53. Kc4 {[%clk 0:01:01.1]} 1-0

[Event "*** Titled Tuesday Blitz"]
[Site "Chess.com"]
[Date "2020.05.05"]
[Round "3"]
[White "Angry_Twin"]
[Black "DamianoLew95"]
[Result "1/2-1/2"]
[WhiteElo "2839"]
[BlackElo "2568"]
[TimeControl "180+1"]
[EndTime "10:29:29 PDT"]
[Termination "Game drawn by repetition"]

1. e4 {[%clk 0:02:58.1]} 1... c5 {[%clk 0:02:59.4]} 2. Nf3 {[%clk 0:02:58]} 2...
d6 {[%clk 0:02:59.4]} 3. d4 {[%clk 0:02:57.4]} 3... cxd4 {[%clk 0:03:00.3]} 4.
Nxd4 {[%clk 0:02:58.1]} 4... Nf6 {[%clk 0:03:00.8]} 5. Nc3 {[%clk 0:02:58.8]}
5... Nc6 {[%clk 0:03:01.4]} 6. Bg5 {[%clk 0:02:58.7]} 6... e6 {[%clk 0:03:01.8]}
7. Qd2 {[%clk 0:02:58.8]} 7... a6 {[%clk 0:02:53.3]} 8. O-O-O {[%clk 0:02:58.6]}
8... Bd7 {[%clk 0:02:52.8]} 9. f3 {[%clk 0:02:58.3]} 9... Be7 {[%clk 0:02:50.7]}
10. Kb1 {[%clk 0:02:55.8]} 10... Rc8 {[%clk 0:02:45.7]} 11. Be3 {[%clk
0:02:53.7]} 11... h5 {[%clk 0:02:37.6]} 12. h4 {[%clk 0:02:48.6]} 12... b5
{[%clk 0:02:30.5]} 13. Nxc6 {[%clk 0:02:48.3]} 13... Bxc6 {[%clk 0:02:28.9]} 14.
Ne2 {[%clk 0:02:48.7]} 14... e5 {[%clk 0:02:22.3]} 15. Bg5 {[%clk 0:02:48.6]}
15... Qb6 {[%clk 0:02:13.4]} 16. Ng3 {[%clk 0:02:48.3]} 16... Bd7 {[%clk
0:01:36.3]} 17. Bd3 {[%clk 0:02:31.3]} 17... Be6 {[%clk 0:01:29.8]} 18. Rhf1
{[%clk 0:02:27.8]} 18... a5 {[%clk 0:01:17.2]} 19. f4 {[%clk 0:02:27.5]} 19...
exf4 {[%clk 0:01:00.8]} 20. Qxf4 {[%clk 0:02:28.4]} 20... a4 {[%clk 0:00:44.1]}
21. Nf5 {[%clk 0:02:27.3]} 21... Bxf5 {[%clk 0:00:39.7]} 22. exf5 {[%clk
0:02:27.6]} 22... O-O {[%clk 0:00:30.4]} 23. Qf3 {[%clk 0:02:27.8]} 23... a3
{[%clk 0:00:23.1]} 24. Rfe1 {[%clk 0:01:49.2]} 24... Rc7 {[%clk 0:00:21.8]} 25.
Re2 {[%clk 0:01:19.3]} 25... Rfc8 {[%clk 0:00:16.6]} 26. Rde1 {[%clk 0:01:17.8]}
26... Qd4 {[%clk 0:00:11.7]} 27. c3 {[%clk 0:01:17.1]} 27... Rxc3 {[%clk
0:00:10.9]} 28. bxc3 {[%clk 0:01:16]} 28... Rxc3 {[%clk 0:00:08.5]} 29. Rd2
{[%clk 0:00:37.1]} 29... Qb4+ {[%clk 0:00:03.9]} 30. Ka1 {[%clk 0:00:34.7]}
30... Qd4 {[%clk 0:00:04.1]} 31. Kb1 {[%clk 0:00:18.6]} 31... Qb4+ {[%clk
0:00:04.6]} 32. Ka1 {[%clk 0:00:15.4]} 32... Qd4 {[%clk 0:00:05.5]} 33. Kb1
{[%clk 0:00:10.8]} 1/2-1/2

[Event "*** Titled Tuesday Blitz"]
[Site "Chess.com"]
[Date "2020.05.05"]
[Round "3"]
[White "fabianvivasz"]
[Black "IljaJoke"]
[Result "0-1"]
[WhiteElo "2356"]
[BlackElo "2566"]
[TimeControl "180+1"]
[EndTime "10:29:30 PDT"]
[Termination "IljaJoke won on time"]

1. e4 {[%clk 0:03:00.9]} 1... e5 {[%clk 0:03:00]} 2. Nf3 {[%clk 0:03:00.7]} 2...
Nc6 {[%clk 0:03:00.6]} 3. d4 {[%clk 0:02:56.3]} 3... exd4 {[%clk 0:03:00.6]} 4.
Nxd4 {[%clk 0:02:57.2]} 4... Nf6 {[%clk 0:03:00.9]} 5. Nxc6 {[%clk 0:02:54.4]}
5... bxc6 {[%clk 0:03:01.8]} 6. e5 {[%clk 0:02:53.4]} 6... Qe7 {[%clk
0:03:02.2]} 7. Qe2 {[%clk 0:02:53.7]} 7... Nd5 {[%clk 0:03:01.9]} 8. h4 {[%clk
0:02:54.1]} 8... a5 {[%clk 0:02:42.7]} 9. c4 {[%clk 0:02:29.6]} 9... Nb6 {[%clk
0:02:39.3]} 10. Nc3 {[%clk 0:01:52]} 10... Qe6 {[%clk 0:02:35.7]} 11. g3 {[%clk
0:01:33.6]} 11... Bb4 {[%clk 0:02:27]} 12. Bd2 {[%clk 0:01:26.7]} 12... Ba6
{[%clk 0:02:25.8]} 13. b3 {[%clk 0:01:26.4]} 13... O-O {[%clk 0:02:18.8]} 14.
Bh3 {[%clk 0:01:22.5]} 14... Qe7 {[%clk 0:02:14.5]} 15. O-O {[%clk 0:01:16.8]}
15... d5 {[%clk 0:02:11.8]} 16. Bg5 {[%clk 0:00:46.5]} 16... Qe8 {[%clk
0:01:48.8]} 17. Qg4 {[%clk 0:00:44.3]} 17... Bxc3 {[%clk 0:01:44.6]} 18. Bf6
{[%clk 0:00:42.6]} 18... g6 {[%clk 0:01:36.7]} 19. Qg5 {[%clk 0:00:31]} 19...
Bxe5 {[%clk 0:01:18.7]} 20. Bxe5 {[%clk 0:00:31.9]} 20... f6 {[%clk 0:01:18.9]}
21. Bxf6 {[%clk 0:00:32]} 21... Qf7 {[%clk 0:01:18.9]} 22. Bb2 {[%clk
0:00:29.8]} 22... Rae8 {[%clk 0:01:18.1]} 23. f4 {[%clk 0:00:18.2]} 23... Bc8
{[%clk 0:01:17.4]} 24. Bxc8 {[%clk 0:00:16.6]} 24... Nxc8 {[%clk 0:01:18.3]} 25.
Rae1 {[%clk 0:00:16.4]} 25... Nd6 {[%clk 0:01:16.9]} 26. h5 {[%clk 0:00:15.9]}
26... Ne4 {[%clk 0:01:10.1]} 27. Qg4 {[%clk 0:00:15.5]} 27... Qf5 {[%clk
0:01:07.3]} 28. Qh4 {[%clk 0:00:14.5]} 28... Qxh5 {[%clk 0:01:04.1]} 29. Qxh5
{[%clk 0:00:14.2]} 29... gxh5 {[%clk 0:01:05]} 30. Kg2 {[%clk 0:00:14.6]} 30...
Kf7 {[%clk 0:01:01.4]} 31. Be5 {[%clk 0:00:14.2]} 31... Rg8 {[%clk 0:01:01.2]}
32. Rf3 {[%clk 0:00:12.4]} 32... Ke6 {[%clk 0:00:58.2]} 33. cxd5+ {[%clk
0:00:12.2]} 33... cxd5 {[%clk 0:00:58]} 34. Rc1 {[%clk 0:00:12.1]} 34... c5
{[%clk 0:00:57.7]} 35. Bc7 {[%clk 0:00:09.9]} 35... Kf5 {[%clk 0:00:57.3]} 36.
Rh1 {[%clk 0:00:07.5]} 36... Nf6 {[%clk 0:00:42.4]} 37. Be5 {[%clk 0:00:07.1]}
37... d4 {[%clk 0:00:42.8]} 38. Bxf6 {[%clk 0:00:03.2]} 38... Kxf6 {[%clk
0:00:43.7]} 39. Rxh5 {[%clk 0:00:03.3]} 39... Re2+ {[%clk 0:00:42.3]} 40. Rf2
{[%clk 0:00:03.7]} 40... Rge8 {[%clk 0:00:37.3]} 41. Rxc5 {[%clk 0:00:03.1]}
41... d3 {[%clk 0:00:32.2]} 42. Rd5 {[%clk 0:00:03.1]} 42... R8e3 {[%clk
0:00:32.8]} 43. Rxe2 {[%clk 0:00:01.6]} 43... dxe2 {[%clk 0:00:32.8]} 0-1

[Event "*** Titled Tuesday Blitz"]
[Site "Chess.com"]
[Date "2020.05.05"]
[Round "3"]
[White "vanea_03"]
[Black "SiddharthGMJagadeesh"]
[Result "1-0"]
[WhiteElo "2633"]
[BlackElo "2403"]
[TimeControl "180+1"]
[EndTime "10:29:32 PDT"]
[Termination "vanea_03 won by resignation"]

1. Nf3 {[%clk 0:03:00.9]} 1... d5 {[%clk 0:02:58.3]} 2. c4 {[%clk 0:03:00.4]}
2... e6 {[%clk 0:02:58.3]} 3. g3 {[%clk 0:03:00.6]} 3... Nf6 {[%clk 0:02:58.2]}
4. Bg2 {[%clk 0:03:01]} 4... dxc4 {[%clk 0:02:58.2]} 5. Qa4+ {[%clk 0:02:59.1]}
5... c6 {[%clk 0:02:58.3]} 6. Qxc4 {[%clk 0:02:58.9]} 6... b5 {[%clk 0:02:58.4]}
7. Qb3 {[%clk 0:02:57.8]} 7... Bb7 {[%clk 0:02:58]} 8. O-O {[%clk 0:02:57.7]}
8... Nbd7 {[%clk 0:02:57.3]} 9. d4 {[%clk 0:02:52.8]} 9... a6 {[%clk 0:02:56.1]}
10. Ne5 {[%clk 0:02:49.8]} 10... Nxe5 {[%clk 0:02:52.8]} 11. dxe5 {[%clk
0:02:49.7]} 11... Nd5 {[%clk 0:02:46.1]} 12. Rd1 {[%clk 0:02:40.4]} 12... Qc7
{[%clk 0:02:44.8]} 13. Nc3 {[%clk 0:02:26.7]} 13... Be7 {[%clk 0:02:37.4]} 14.
a4 {[%clk 0:02:13.2]} 14... Nxc3 {[%clk 0:01:37.9]} 15. Qxc3 {[%clk 0:02:10.9]}
15... O-O {[%clk 0:01:34.3]} 16. Be3 {[%clk 0:02:04.1]} 16... Rfc8 {[%clk
0:01:20.6]} 17. Bc5 {[%clk 0:01:56.8]} 17... Bxc5 {[%clk 0:01:17.3]} 18. Qxc5
{[%clk 0:01:57.7]} 18... Rd8 {[%clk 0:01:17.5]} 19. Rd6 {[%clk 0:01:56.6]} 19...
Rd7 {[%clk 0:00:34.3]} 20. Rad1 {[%clk 0:01:43.3]} 20... Rad8 {[%clk 0:00:33.1]}
21. axb5 {[%clk 0:01:24.1]} 21... axb5 {[%clk 0:00:30.8]} 22. b4 {[%clk
0:01:20.8]} 22... h6 {[%clk 0:00:27.7]} 23. Be4 {[%clk 0:01:20]} 23... g6 {[%clk
0:00:18.4]} 24. h4 {[%clk 0:01:18]} 24... h5 {[%clk 0:00:17.9]} 25. Kg2 {[%clk
0:01:14.2]} 25... Kg7 {[%clk 0:00:18]} 26. Kf3 {[%clk 0:01:08.4]} 26... Ba8
{[%clk 0:00:18.2]} 27. Kg2 {[%clk 0:00:59.9]} 27... Bb7 {[%clk 0:00:18.4]} 28.
f3 {[%clk 0:01:00.1]} 28... Ba8 {[%clk 0:00:15.4]} 29. g4 {[%clk 0:01:00.2]}
29... hxg4 {[%clk 0:00:14.8]} 30. fxg4 {[%clk 0:01:01.1]} 30... Bb7 {[%clk
0:00:15]} 31. Kf3 {[%clk 0:00:52.5]} 31... Ba8 {[%clk 0:00:13.8]} 32. h5 {[%clk
0:00:50.3]} 32... g5 {[%clk 0:00:10.5]} 33. h6+ {[%clk 0:00:49.9]} 33... Kh8
{[%clk 0:00:08.6]} 34. Qe3 {[%clk 0:00:41.7]} 34... Rxd6 {[%clk 0:00:08.4]} 35.
exd6 {[%clk 0:00:34.8]} 35... Rxd6 {[%clk 0:00:08.1]} 36. Qxg5 {[%clk
0:00:35.2]} 36... f5 {[%clk 0:00:06.2]} 37. Qf6+ {[%clk 0:00:28.7]} 37... Kg8
{[%clk 0:00:06]} 38. Rxd6 {[%clk 0:00:23.5]} 38... fxe4+ {[%clk 0:00:05.6]} 39.
Kg2 {[%clk 0:00:23.2]} 39... c5 {[%clk 0:00:03.3]} 40. Rd8+ {[%clk 0:00:23]}
40... Kh7 {[%clk 0:00:03.6]} 1-0

[Event "*** Titled Tuesday Blitz"]
[Site "Chess.com"]
[Date "2020.05.05"]
[Round "3"]
[White "SmirnovAlexandrA"]
[Black "Gromes7"]
[Result "1/2-1/2"]
[WhiteElo "2316"]
[BlackElo "2109"]
[TimeControl "180+1"]
[EndTime "10:29:32 PDT"]
[Termination "Game drawn by repetition"]

1. e4 {[%clk 0:03:00.9]} 1... c5 {[%clk 0:02:59]} 2. Nf3 {[%clk 0:03:00.4]} 2...
a6 {[%clk 0:02:59.2]} 3. b3 {[%clk 0:02:59]} 3... d6 {[%clk 0:02:58.3]} 4. Bb2
{[%clk 0:02:59]} 4... e5 {[%clk 0:02:58.5]} 5. Bc4 {[%clk 0:02:56]} 5... Be7
{[%clk 0:02:57.1]} 6. O-O {[%clk 0:02:54.8]} 6... b5 {[%clk 0:02:57]} 7. Bd5
{[%clk 0:02:54.5]} 7... Ra7 {[%clk 0:02:57]} 8. a4 {[%clk 0:02:55.4]} 8... Qc7
{[%clk 0:02:39.9]} 9. c3 {[%clk 0:02:52.4]} 9... Nf6 {[%clk 0:02:38.5]} 10. d4
{[%clk 0:02:49.3]} 10... Nxd5 {[%clk 0:02:36.1]} 11. exd5 {[%clk 0:02:50.2]}
11... exd4 {[%clk 0:02:10.1]} 12. axb5 {[%clk 0:02:45.8]} 12... axb5 {[%clk
0:02:07.1]} 13. Rxa7 {[%clk 0:02:46.2]} 13... Qxa7 {[%clk 0:02:07.2]} 14. cxd4
{[%clk 0:02:46.8]} 14... O-O {[%clk 0:02:06.1]} 15. dxc5 {[%clk 0:02:45.1]}
15... Qxc5 {[%clk 0:02:04.4]} 16. Qd3 {[%clk 0:02:39.6]} 16... Nd7 {[%clk
0:02:00.6]} 17. Nbd2 {[%clk 0:02:38.7]} 17... Bb7 {[%clk 0:01:44.7]} 18. Re1
{[%clk 0:02:02.3]} 18... Bf6 {[%clk 0:01:34.7]} 19. Ne4 {[%clk 0:02:01.4]} 19...
Qxd5 {[%clk 0:01:34.4]} 20. Nxf6+ {[%clk 0:02:00.8]} 20... Nxf6 {[%clk
0:01:34.1]} 21. Qc3 {[%clk 0:01:32.2]} 21... Re8 {[%clk 0:01:22]} 22. Rc1 {[%clk
0:01:16.8]} 22... h6 {[%clk 0:01:19.7]} 23. Qb4 {[%clk 0:01:13.7]} 23... Qf5
{[%clk 0:01:02.5]} 24. Qxd6 {[%clk 0:01:02.8]} 24... Bxf3 {[%clk 0:00:56.1]} 25.
gxf3 {[%clk 0:01:03.7]} 25... Qxf3 {[%clk 0:00:49.1]} 26. Bxf6 {[%clk
0:01:00.5]} 26... Qxf6 {[%clk 0:00:47]} 27. Qxf6 {[%clk 0:00:59.8]} 27... gxf6
{[%clk 0:00:47.2]} 28. Rc5 {[%clk 0:00:59.4]} 28... Re5 {[%clk 0:00:45.6]} 29.
Rc8+ {[%clk 0:00:51.6]} 29... Kg7 {[%clk 0:00:45.7]} 30. Rb8 {[%clk 0:00:51.6]}
30... Rc5 {[%clk 0:00:43.1]} 31. Kg2 {[%clk 0:00:50.7]} 31... f5 {[%clk
0:00:42.8]} 32. b4 {[%clk 0:00:47.9]} 32... Rd5 {[%clk 0:00:41.7]} 33. Kg3
{[%clk 0:00:47.5]} 33... Kf6 {[%clk 0:00:41.2]} 34. Rb6+ {[%clk 0:00:46.5]}
34... Kg5 {[%clk 0:00:38.3]} 35. h4+ {[%clk 0:00:43.2]} 35... Kh5 {[%clk
0:00:37.9]} 36. f3 {[%clk 0:00:41.2]} 36... f4+ {[%clk 0:00:34.8]} 37. Kh3
{[%clk 0:00:33.9]} 37... f5 {[%clk 0:00:32.8]} 38. Rf6 {[%clk 0:00:27.4]} 38...
Re5 {[%clk 0:00:28.6]} 39. Kg2 {[%clk 0:00:17.4]} 39... Rd5 {[%clk 0:00:26.9]}
40. Kh3 {[%clk 0:00:16.7]} 40... Re5 {[%clk 0:00:26.9]} 41. Kg2 {[%clk
0:00:16.7]} 41... Re2+ {[%clk 0:00:17.5]} 42. Kh3 {[%clk 0:00:15.6]} 42... Re5
{[%clk 0:00:17.2]} 1/2-1/2

[Event "*** Titled Tuesday Blitz"]
[Site "Chess.com"]
[Date "2020.05.05"]
[Round "3"]
[White "CroissantNeuf"]
[Black "ChessTraining77"]
[Result "1-0"]
[WhiteElo "2365"]
[BlackElo "2525"]
[TimeControl "180+1"]
[EndTime "10:29:33 PDT"]
[Termination "CroissantNeuf won by resignation"]

1. Nf3 {[%clk 0:03:00.9]} 1... Nf6 {[%clk 0:02:58.7]} 2. g3 {[%clk 0:03:00.8]}
2... d5 {[%clk 0:02:58.8]} 3. Bg2 {[%clk 0:03:00.7]} 3... c6 {[%clk 0:02:59.3]}
4. O-O {[%clk 0:03:00.1]} 4... Bf5 {[%clk 0:02:59.8]} 5. c4 {[%clk 0:02:59.7]}
5... e6 {[%clk 0:02:59.9]} 6. Qb3 {[%clk 0:02:59.1]} 6... Qb6 {[%clk 0:02:59.2]}
7. d3 {[%clk 0:02:58.9]} 7... Nbd7 {[%clk 0:02:57.9]} 8. cxd5 {[%clk 0:02:58.9]}
8... exd5 {[%clk 0:02:54.7]} 9. Qc2 {[%clk 0:02:58.3]} 9... Be7 {[%clk
0:02:52.2]} 10. Nc3 {[%clk 0:02:58.8]} 10... h6 {[%clk 0:02:50.3]} 11. e4 {[%clk
0:02:58.3]} 11... dxe4 {[%clk 0:02:49.3]} 12. dxe4 {[%clk 0:02:58.8]} 12... Bh7
{[%clk 0:02:49.6]} 13. h3 {[%clk 0:02:54.6]} 13... O-O {[%clk 0:02:48.8]} 14.
Be3 {[%clk 0:02:48.7]} 14... Qa5 {[%clk 0:02:46.3]} 15. a3 {[%clk 0:02:47.3]}
15... Rfe8 {[%clk 0:02:38.5]} 16. b4 {[%clk 0:02:45.6]} 16... Qc7 {[%clk
0:02:37.9]} 17. Bf4 {[%clk 0:02:38.5]} 17... Bd6 {[%clk 0:02:27.2]} 18. Bxd6
{[%clk 0:02:31.4]} 18... Qxd6 {[%clk 0:02:27]} 19. Rad1 {[%clk 0:02:28.2]} 19...
Qe7 {[%clk 0:02:20.3]} 20. Rfe1 {[%clk 0:02:26.4]} 20... Rad8 {[%clk 0:02:14.4]}
21. Qb3 {[%clk 0:02:10.1]} 21... Nb6 {[%clk 0:01:54.4]} 22. Rxd8 {[%clk
0:01:48]} 22... Rxd8 {[%clk 0:01:52.7]} 23. e5 {[%clk 0:01:26.7]} 23... Nfd5
{[%clk 0:01:51.6]} 24. Ne4 {[%clk 0:01:22.2]} 24... Bxe4 {[%clk 0:01:49.6]} 25.
Rxe4 {[%clk 0:01:22.8]} 25... c5 {[%clk 0:01:25.2]} 26. bxc5 {[%clk 0:01:17.5]}
26... Qxc5 {[%clk 0:01:25.2]} 27. e6 {[%clk 0:01:13.2]} 27... fxe6 {[%clk
0:01:21.1]} 28. Rxe6 {[%clk 0:01:12.2]} 28... Qc4 {[%clk 0:01:14]} 29. Qb1
{[%clk 0:00:24]} 29... Nf6 {[%clk 0:00:50.3]} 30. Re7 {[%clk 0:00:16.8]} 30...
Qc5 {[%clk 0:00:40.5]} 31. Rxb7 {[%clk 0:00:14.7]} 31... Re8 {[%clk 0:00:35.8]}
32. Qg6 {[%clk 0:00:13]} 32... Nbd7 {[%clk 0:00:35.3]} 33. Rxd7 {[%clk
0:00:08.7]} 33... Nxd7 {[%clk 0:00:26.8]} 34. Qxe8+ {[%clk 0:00:08.6]} 34... Nf8
{[%clk 0:00:27.1]} 35. h4 {[%clk 0:00:08.4]} 35... Qxa3 {[%clk 0:00:26.1]} 36.
Ne5 {[%clk 0:00:06.6]} 36... Qb3 {[%clk 0:00:25.1]} 37. Qd8 {[%clk 0:00:05.1]}
37... Qb1+ {[%clk 0:00:22.7]} 38. Kh2 {[%clk 0:00:05.1]} 1-0

[Event "*** Titled Tuesday Blitz"]
[Site "Chess.com"]
[Date "2020.05.05"]
[Round "3"]
[White "Semen16"]
[Black "Nellichka"]
[Result "1-0"]
[WhiteElo "2318"]
[BlackElo "2073"]
[TimeControl "180+1"]
[EndTime "10:29:33 PDT"]
[Termination "Semen16 won on time"]

1. e4 {[%clk 0:03:00.9]} 1... e6 {[%clk 0:02:46.2]} 2. Nf3 {[%clk 0:03:00.2]}
2... d5 {[%clk 0:02:42]} 3. Nc3 {[%clk 0:03:00.2]} 3... d4 {[%clk 0:02:36.8]} 4.
Ne2 {[%clk 0:03:00]} 4... c5 {[%clk 0:02:35.8]} 5. c3 {[%clk 0:02:59.4]} 5...
Nc6 {[%clk 0:02:30.9]} 6. cxd4 {[%clk 0:02:58.9]} 6... cxd4 {[%clk 0:02:24.4]}
7. Qa4 {[%clk 0:02:58.2]} 7... Bc5 {[%clk 0:02:23.6]} 8. b4 {[%clk 0:02:56.9]}
8... Bb6 {[%clk 0:02:10.8]} 9. b5 {[%clk 0:02:56.5]} 9... Na5 {[%clk 0:02:02.9]}
10. Nexd4 {[%clk 0:02:55.6]} 10... Nf6 {[%clk 0:01:59.9]} 11. d3 {[%clk
0:02:50.9]} 11... e5 {[%clk 0:01:39]} 12. Nc2 {[%clk 0:02:23.3]} 12... Ng4
{[%clk 0:01:32.7]} 13. Be3 {[%clk 0:02:16.6]} 13... Be6 {[%clk 0:01:11.4]} 14.
Be2 {[%clk 0:02:11.6]} 14... O-O {[%clk 0:01:09.3]} 15. O-O {[%clk 0:02:07.7]}
15... Qd6 {[%clk 0:01:02.7]} 16. h3 {[%clk 0:02:01.9]} 16... Nxe3 {[%clk
0:00:58.5]} 17. Nxe3 {[%clk 0:02:01.7]} 17... a6 {[%clk 0:00:44.5]} 18. Rfc1
{[%clk 0:01:52.6]} 18... axb5 {[%clk 0:00:43.2]} 19. Qxb5 {[%clk 0:01:52.7]}
19... Rfc8 {[%clk 0:00:40.4]} 20. Rxc8+ {[%clk 0:01:49.4]} 20... Rxc8 {[%clk
0:00:39.2]} 21. Rb1 {[%clk 0:01:11.3]} 21... Bxa2 {[%clk 0:00:20]} 22. Qxb6
{[%clk 0:01:04.9]} 22... Rc6 {[%clk 0:00:19.7]} 23. Qxa5 {[%clk 0:00:58.5]}
23... Bxb1 {[%clk 0:00:19.2]} 24. Qa8+ {[%clk 0:00:51.3]} 24... Qf8 {[%clk
0:00:18.5]} 25. Qxb7 {[%clk 0:00:49.7]} 25... Rc1+ {[%clk 0:00:16.3]} 26. Kh2
{[%clk 0:00:49.8]} 26... g6 {[%clk 0:00:15.2]} 27. Nd5 {[%clk 0:00:48.7]} 27...
Kg7 {[%clk 0:00:13.5]} 28. Qb2 {[%clk 0:00:44.5]} 28... Qc5 {[%clk 0:00:12.2]}
29. Qxe5+ {[%clk 0:00:43.1]} 29... Kg8 {[%clk 0:00:09.8]} 30. d4 {[%clk
0:00:40.6]} 30... Qc2 {[%clk 0:00:06.9]} 31. Nf6+ {[%clk 0:00:39.6]} 31... Kf8
{[%clk 0:00:05.4]} 32. Nd7+ {[%clk 0:00:29.6]} 32... Kg8 {[%clk 0:00:04.8]} 33.
Bb5 {[%clk 0:00:18.6]} 33... Qc8 {[%clk 0:00:02.1]} 34. Nf6+ {[%clk 0:00:18.3]}
1-0

[Event "*** Titled Tuesday Blitz"]
[Site "Chess.com"]
[Date "2020.05.05"]
[Round "3"]
[White "warmoatmeal"]
[Black "Caterpiller35"]
[Result "0-1"]
[WhiteElo "2026"]
[BlackElo "2301"]
[TimeControl "180+1"]
[EndTime "10:29:33 PDT"]
[Termination "Caterpiller35 won by resignation"]

1. Nf3 {[%clk 0:03:00.9]} 1... Nf6 {[%clk 0:02:59.9]} 2. b3 {[%clk 0:03:00.8]}
2... d6 {[%clk 0:02:59.8]} 3. Bb2 {[%clk 0:03:01.7]} 3... g6 {[%clk 0:03:00.4]}
4. e3 {[%clk 0:03:02]} 4... Bg7 {[%clk 0:03:00.6]} 5. c4 {[%clk 0:03:00.4]} 5...
O-O {[%clk 0:03:00.8]} 6. Nc3 {[%clk 0:03:00.1]} 6... Nbd7 {[%clk 0:03:01.1]} 7.
d4 {[%clk 0:03:00]} 7... Re8 {[%clk 0:03:01.2]} 8. Be2 {[%clk 0:03:00.6]} 8...
e5 {[%clk 0:02:58.5]} 9. Qc2 {[%clk 0:02:50.5]} 9... exd4 {[%clk 0:02:51.2]} 10.
exd4 {[%clk 0:02:35.8]} 10... c5 {[%clk 0:02:51.1]} 11. O-O-O {[%clk 0:02:35.8]}
11... Qa5 {[%clk 0:02:49.9]} 12. Kb1 {[%clk 0:02:34.8]} 12... cxd4 {[%clk
0:02:49.4]} 13. Nxd4 {[%clk 0:02:34.3]} 13... Nc5 {[%clk 0:02:49.6]} 14. Ka1
{[%clk 0:02:28.2]} 14... Nfe4 {[%clk 0:02:34.8]} 15. Bf3 {[%clk 0:01:41]} 15...
Ng5 {[%clk 0:00:32.4]} 16. Bd5 {[%clk 0:01:27.2]} 16... Bxd4 {[%clk 0:00:30.9]}
17. Rxd4 {[%clk 0:01:27.2]} 17... Bf5 {[%clk 0:00:31.6]} 18. Qd1 {[%clk
0:01:24.8]} 18... Nge6 {[%clk 0:00:29.2]} 19. Rd2 {[%clk 0:01:19.3]} 19... Nf4
{[%clk 0:00:24.7]} 20. g3 {[%clk 0:01:00]} 20... Nfd3 {[%clk 0:00:24]} 21. g4
{[%clk 0:00:42]} 21... Bxg4 {[%clk 0:00:21.1]} 22. f3 {[%clk 0:00:21.4]} 22...
Bf5 {[%clk 0:00:21.1]} 23. Ne4 {[%clk 0:00:21.3]} 23... Bxe4 {[%clk 0:00:16.8]}
24. fxe4 {[%clk 0:00:14.2]} 24... Nxb3+ {[%clk 0:00:15.7]} 25. Qxb3 {[%clk
0:00:14.3]} 25... Qxd2 {[%clk 0:00:15.7]} 26. Rd1 {[%clk 0:00:14.4]} 26... Qxb2+
{[%clk 0:00:15.7]} 27. Qxb2 {[%clk 0:00:13.7]} 27... Nxb2 {[%clk 0:00:16]} 28.
Kxb2 {[%clk 0:00:14.6]} 28... Rab8 {[%clk 0:00:15.7]} 29. Kc3 {[%clk 0:00:14.9]}
29... b5 {[%clk 0:00:14.4]} 30. Bc6 {[%clk 0:00:12.4]} 30... Rec8 {[%clk
0:00:13.4]} 31. cxb5 {[%clk 0:00:12.4]} 31... Rxb5 {[%clk 0:00:13.2]} 32. Rxd6
{[%clk 0:00:10]} 32... Rc5+ {[%clk 0:00:12.7]} 33. Kd4 {[%clk 0:00:10]} 33...
R5xc6 {[%clk 0:00:13.6]} 34. Kd5 {[%clk 0:00:07]} 34... Rxd6+ {[%clk 0:00:13.5]}
35. Kxd6 {[%clk 0:00:07.9]} 35... Re8 {[%clk 0:00:13.6]} 0-1